Workbook

Sheet Five Precision Points
M1: =PI()/180 -> 0.01745329252
B11: qin | C11: 47.1962205 | E11: Dq | F11: 120 | H11: Dx | I11: 9 | K11: kq | L11: =F11/I11 -> 13.33333333
B12: fin | C12: 116.2246375 | E12: Df | F12: 60 | H12: Dy | I12: =LOG(10) -> 1 | K12: kf | L12: =F12/I12 -> 60
X13: Chebyshev Spacing
D14: DEGREES | G14: RADIANS
B15: x | C15: y | D15: q | E15: f | G15: q | H15: f
B16: =11/2-9/2*COS(PI()/10) -> 1.220245677 | C16: =LOG(B16) -> 0.08644727763 | D16: =$C$11+$L$11*(B16-1) -> 50.13282952 | E16: =$C$12+$L$12*C16 -> 121.4114741 | G16: =D16*D_R -> 0.8749829384 | H16: =E16*D_R -> 2.119029973
B17: =11/2-9/2*COS(3*PI()/10) -> 2.854966365 | C17: =LOG(B17) -> 0.455600996 | D17: =$C$11+$L$11*(B17-1) -> 71.92910536 | E17: =$C$12+$L$12*C17 -> 143.5606972 | G17: =D17*D_R -> 1.255399717 | H17: =E17*D_R -> 2.505606843
B18: =11/2-9/2*COS(5*PI()/10) -> 5.5 | C18: 0.7403626895 | D18: =$C$11+$L$11*(B18-1) -> 107.1962205 | E18: 160.6463988 | G18: =D18*D_R -> 1.870926993 | H18: =E18*D_R -> 2.803808591
B19: =11/2-9/2*COS(7*PI()/10) -> 8.145033635 | C19: 0.9108928821 | D19: =$C$11+$L$11*(B19-1) -> 142.4633356 | E19: =$C$12+$L$12*C19 -> 170.8782104 | G19: =D19*D_R -> 2.48645427 | H19: =E19*D_R -> 2.982387391
B20: =11/2-9/2*COS(9*PI()/10) -> 9.779754323 | C20: 0.990327945 | D20: 164.2596115 | E20: 175.6443142 | G20: =D20*D_R -> 2.866871048 | H20: =E20*D_R -> 3.065571594
B22: =COS(H16) -> -0.5211805544 | C22: =-COS(G16) -> -0.6410099536 | D22: 1 | E22: =COS(H16-G16) -> 0.3209660145 | I22: K1 | J22: =MMULT(MINVERSE(B22:D24),(E22:E24)) -> 0.7663806802
B23: =COS(H17) -> -0.8044865447 | C23: =-COS(G17) -> -0.3101935425 | D23: 1 | E23: =COS(H17-G17) -> 0.3151257959 | I23: K2 | J23: 0.6386624477
B24: =COS(H18) -> -0.9434913368 | C24: =-COS(G18) -> 0.2956450347 | D24: 1 | E24: =COS(H18-G18) -> 0.5955215573 | I24: K3 | J24: 1.129777708
B25: =COS(H19) -> -0.9873535877 | C25: =-COS(G19) -> 0.792963623 | D25: 1 | E25: =COS(H19-G19) -> 0.8795250648
B26: -0.9971117907 | C26: 0.9625007576 | D26: 1 | E26: 0.9803239119 | I26: det1 | J26: =MDETERM(B22:E25) -> 2.211607193e-09 | L26: =SQRT(J26^2+J27^2) -> 1.510962606e-08
I27: det2 | J27: =MDETERM(B23:E26) -> -1.494689243e-08
C28: a1 | D28: 1
C29: a2 | D29: =D28/J22 -> 1.304834563 | E29: =-D29 -> -1.304834563
C30: a3 | D30: =SQRT(D28^2+D29^2+D31^2-2*J24*D29*D31) -> 0.7333468732
C31: a4 | D31: =D28/J23 -> 1.565772348 | E31: =-D31 -> -1.565772348 | H31: emax | I31: =MAX(H35:H53) -> 0.002114814834
H32: emin | I32: =MIN(H35:H53) -> -0.002891782493
B34: x | C34: yreq | D34: q | E34: f | G34: ygen | H34: e
B35: 1 | C35: =LOG(B35) -> 0 | D35: =$C$11+$L$11*(B35-$B$35) -> 47.1962205 | E35: =FourBar($D$29,$D$30,$D$31,$D$28,-1,D35*D_R) -> 2.031530863 | F35: =E35/D_R -> 116.3981444 | G35: =1/$L$12*(F35-$C$12) -> 0.002891782493 | H35: =C35-G35 -> -0.002891782493
B36: 1.5 | C36: =LOG(B36) -> 0.1760912591 | D36: =$C$11+$L$11*(B36-$B$35) -> 53.86288716 | E36: =FourBar($D$29,$D$30,$D$31,$D$28,-1,D36*D_R) -> 2.211190317 | F36: =E36/D_R -> 126.6918729 | G36: =1/$L$12*(F36-$C$12) -> 0.1744539237 | H36: =C36-G36 -> 0.001637335393
B37: 2 | C37: 0.3010299957 | D37: 60.52955383 | E37: =FourBar($D$29,$D$30,$D$31,$D$28,-1,D37*D_R) -> 2.34194799 | F37: =E37/D_R -> 134.1837357 | G37: 0.2993183035 | H37: 0.001711692205
B38: 2.5 | C38: 0.3979400087 | D38: 67.1962205 | E38: =FourBar($D$29,$D$30,$D$31,$D$28,-1,D38*D_R) -> 2.44449624 | F38: =E38/D_R -> 140.0593176 | G38: 0.3972446692 | H38: 0.0006953394867
B39: 3 | C39: 0.4771212547 | D39: 73.86288716 | E39: =FourBar($D$29,$D$30,$D$31,$D$28,-1,D39*D_R) -> 2.52838765 | F39: =E39/D_R -> 144.8659413 | G39: 0.4773550643 | H39: -0.0002338095583
B40: 3.5 | C40: 0.5440680444 | D40: 80.52955383 | E40: =FourBar($D$29,$D$30,$D$31,$D$28,-1,D40*D_R) -> 2.599053224 | F40: =E40/D_R -> 148.9147805 | G40: 0.5448357168 | H40: -0.0007676724746
B41: 4 | C41: 0.6020599913 | D41: 87.1962205 | E41: =FourBar($D$29,$D$30,$D$31,$D$28,-1,D41*D_R) -> 2.659925897 | F41: =E41/D_R -> 152.4025277 | G41: 0.6029648372 | H41: -0.0009048458828
B42: 4.5 | C42: 0.6532125138 | D42: 93.86288716 | E42: =FourBar($D$29,$D$30,$D$31,$D$28,-1,D42*D_R) -> 2.713323497 | F42: =E42/D_R -> 155.4619848 | G42: 0.6539557891 | H42: -0.0007432753421
B43: 5 | C43: 0.6989700043 | D43: 100.5295538 | E43: =FourBar($D$29,$D$30,$D$31,$D$28,-1,D43*D_R) -> 2.760884688 | F43: =E43/D_R -> 158.1870404 | G43: 0.6993733816 | H43: -0.0004033772236
B44: 5.5 | C44: 0.7403626895 | D44: 107.1962205 | E44: =FourBar($D$29,$D$30,$D$31,$D$28,-1,D44*D_R) -> 2.803808591 | F44: =E44/D_R -> 160.6463988 | G44: 0.7403626895 | H44: 0
B45: 6 | C45: 0.7781512504 | D45: 113.8628872 | E45: =FourBar($D$29,$D$30,$D$31,$D$28,-1,D45*D_R) -> 2.842996323 | F45: =E45/D_R -> 162.8916905 | G45: 0.7777842167 | H45: 0.0003670336597
B46: 6.5 | C46: 0.8129133566 | D46: 120.5295538 | E46: =FourBar($D$29,$D$30,$D$31,$D$28,-1,D46*D_R) -> 2.879138664 | F46: =E46/D_R -> 164.9624941 | G46: 0.8122976104 | H46: 0.0006157461941
B47: 7 | C47: 0.84509804 | D47: 127.1962205 | E47: =FourBar($D$29,$D$30,$D$31,$D$28,-1,D47*D_R) -> 2.912771461 | F47: =E47/D_R -> 166.8895114 | G47: 0.8444145657 | H47: 0.0006834743101
B48: 7.5 | C48: 0.8750612634 | D48: 133.8628872 | E48: =FourBar($D$29,$D$30,$D$31,$D$28,-1,D48*D_R) -> 2.944309289 | F48: =E48/D_R -> 168.6964958 | G48: 0.8745309731 | H48: 0.0005302902505
B49: 8 | C49: 0.903089987 | D49: 140.5295538 | E49: =FourBar($D$29,$D$30,$D$31,$D$28,-1,D49*D_R) -> 2.974060606 | F49: =E49/D_R -> 170.4011207 | G49: 0.9029413879 | H49: 0.0001485991113
B50: 8.5 | C50: 0.9294189257 | D50: 147.1962205 | E50: =FourBar($D$29,$D$30,$D$31,$D$28,-1,D50*D_R) -> 3.002218384 | F50: =E50/D_R -> 172.0144426 | G50: 0.9298300854 | H50: -0.000411159722
B51: 9 | C51: 0.9542425094 | D51: 153.8628872 | E51: =FourBar($D$29,$D$30,$D$31,$D$28,-1,D51*D_R) -> 3.028795277 | F51: =E51/D_R -> 173.5371864 | G51: 0.9552091492 | H51: -0.0009666397631
B52: 9.5 | C52: 0.9777236053 | D52: 160.5295538 | E52: =FourBar($D$29,$D$30,$D$31,$D$28,-1,D52*D_R) -> 3.053358912 | F52: =E52/D_R -> 174.944579 | G52: 0.9786656926 | H52: -0.0009420873324
B53: 10 | C53: 1 | D53: 167.1962205 | E53: =FourBar($D$29,$D$30,$D$31,$D$28,-1,D53*D_R) -> 3.073485518 | F53: =E53/D_R -> 176.0977486 | G53: 0.9978851852 | H53: 0.002114814834

Sheet Four Precision Points
M1: =PI()/180 -> 0.01745329252
B11: qin | C11: 45 | E11: Dq | F11: 120 | H11: Dx | I11: 9 | K11: kq | L11: =F11/I11 -> 13.33333333
B12: fin | C12: 115.6963994 | E12: Df | F12: 60 | H12: Dy | I12: =LOG(10) -> 1 | K12: kf | L12: =F12/I12 -> 60
X13: Chebyshev Spacing
D14: DEGREES | G14: RADIANS
B15: x | C15: y | D15: q | E15: f | G15: q | H15: f
B16: =11/2-9/2*COS(PI()/8) -> 1.342542104 | C16: =LOG(B16) -> 0.1279279146 | D16: =$C$11+$L$11*(B16-1) -> 49.56722805 | E16: =$C$12+$L$12*C16 -> 123.3720742 | G16: =D16*D_R -> 0.8651113305 | H16: =E16*D_R -> 2.153248901
B17: =11/2-9/2*COS(3*PI()/8) -> 3.777924554 | C17: =LOG(B17) -> 0.5772532808 | D17: =$C$11+$L$11*(B17-1) -> 82.03899406 | E17: =$C$12+$L$12*C17 -> 150.3315962 | G17: =D17*D_R -> 1.431850561 | H17: =E17*D_R -> 2.623781324
B18: =11/2-9/2*COS(5*PI()/8) -> 7.222075446 | C18: =LOG(B18) -> 0.858662021 | D18: =$C$11+$L$11*(B18-1) -> 127.9610059 | E18: 167.2161206 | G18: =D18*D_R -> 2.233340868 | H18: =E18*D_R -> 2.918471867
B19: =11/2-9/2*COS(7*PI()/8) -> 9.657457896 | C19: =LOG(B19) -> 0.9848628234 | D19: =$C$11+$L$11*(B19-1) -> 160.432772 | E19: =$C$12+$L$12*C19 -> 174.7881688 | G19: =D19*D_R -> 2.800080099 | H19: =E19*D_R -> 3.050629039
B21: =COS(H16) -> -0.5500737729 | C21: =-COS(G16) -> -0.6485553785 | D21: 1 | E21: =COS(H16-G16) -> 0.2789098814 | I21: K1 | J21: =MMULT(MINVERSE(B21:D23),(E21:E23)) -> 0.7403946522
B22: =COS(H17) -> -0.868904607 | C22: =-COS(G17) -> -0.1384991174 | D22: 1 | E22: =COS(H17-G17) -> 0.3698667207 | I22: K2 | J22: 0.6411400246
B23: =COS(H18) -> -0.9752116502 | C23: =-COS(G18) -> 0.6151250326 | D23: 1 | E23: =COS(H18-G18) -> 0.7743361606 | I23: K3 | J23: 1.101996373
B24: =COS(H19) -> -0.9958656623 | C24: =-COS(G19) -> 0.9422491697 | D24: 1 | E24: =COS(H19-G19) -> 0.9687764658
I25: Determ | J25: =MDETERM(B21:E24) -> -8.935198732e-09
C26: a1 | D26: 1
C27: a2 | D27: =D26/J21 -> 1.350631041 | E27: =-D27 -> -1.350631041
C28: a3 | D28: =SQRT(D26^2+D27^2+D29^2-2*J23*D27*D29) -> 0.7835726143
C29: a4 | D29: =D26/J22 -> 1.559721686 | E29: =-D29 -> -1.559721686 | H29: emax | I29: =MAX(H33:H51) -> 0.003749330162
H30: emin | I30: =MIN(H33:H51) -> -0.01012272543
B32: x | C32: yreq | D32: q | E32: f | G32: ygen | H32: e
B33: 1 | C33: =LOG(B33) -> 0 | D33: =$C$11+$L$11*(B33-$B$33) -> 45 | E33: =FourBar($D$27,$D$28,$D$29,$D$26,-1,D33*D_R) -> 2.029883595 | F33: =E33/D_R -> 116.3037629 | G33: =1/$L$12*(F33-$C$12) -> 0.01012272543 | H33: =C33-G33 -> -0.01012272543
B34: 1.5 | C34: =LOG(B34) -> 0.1760912591 | D34: =$C$11+$L$11*(B34-$B$33) -> 51.66666667 | E34: =FourBar($D$27,$D$28,$D$29,$D$26,-1,D34*D_R) -> 2.201568266 | F34: =E34/D_R -> 126.14057 | G34: =1/$L$12*(F34-$C$12) -> 0.1740695099 | H34: =C34-G34 -> 0.002021749125
B35: 2 | C35: 0.3010299957 | D35: 58.33333333 | E35: =FourBar($D$27,$D$28,$D$29,$D$26,-1,D35*D_R) -> 2.330594687 | F35: =E35/D_R -> 133.5332393 | G35: 0.2972806655 | H35: 0.003749330162
B36: 2.5 | C36: 0.3979400087 | D36: 65 | E36: =FourBar($D$27,$D$28,$D$29,$D$26,-1,D36*D_R) -> 2.433074871 | F36: =E36/D_R -> 139.4049213 | G36: 0.3951420326 | H36: 0.002797976112
B37: 3 | C37: 0.4771212547 | D37: 71.66666667 | E37: =FourBar($D$27,$D$28,$D$29,$D$26,-1,D37*D_R) -> 2.517396307 | F37: =E37/D_R -> 144.2361837 | G37: 0.4756630726 | H37: 0.001458182134
B38: 3.5 | C38: 0.5440680444 | D38: 78.33333333 | E38: =FourBar($D$27,$D$28,$D$29,$D$26,-1,D38*D_R) -> 2.588606945 | F38: =E38/D_R -> 148.3162528 | G38: 0.5436642235 | H38: 0.0004038208022
B39: 4 | C39: 0.6020599913 | D39: 85 | E39: =FourBar($D$27,$D$28,$D$29,$D$26,-1,D39*D_R) -> 2.650001364 | F39: =E39/D_R -> 151.8338939 | G39: 0.6022915748 | H39: -0.0002315834929
B40: 4.5 | C40: 0.6532125138 | D40: 91.66666667 | E40: =FourBar($D$27,$D$28,$D$29,$D$26,-1,D40*D_R) -> 2.703847893 | F40: =E40/D_R -> 154.9190727 | G40: 0.6537112227 | H40: -0.0004987089008
B41: 5 | C41: 0.6989700043 | D41: 98.33333333 | E41: =FourBar($D$27,$D$28,$D$29,$D$26,-1,D41*D_R) -> 2.751770256 | F41: =E41/D_R -> 157.6648219 | G41: 0.6994737086 | H41: -0.0005037042315
B42: 5.5 | C42: 0.7403626895 | D42: 105 | E42: =FourBar($D$27,$D$28,$D$29,$D$26,-1,D42*D_R) -> 2.794966063 | F42: =E42/D_R -> 160.1397593 | G42: 0.7407226653 | H42: -0.0003599758012
B43: 6 | C43: 0.7781512504 | D43: 111.6666667 | E43: =FourBar($D$27,$D$28,$D$29,$D$26,-1,D43*D_R) -> 2.834339518 | F43: =E43/D_R -> 162.3956921 | G43: 0.7783215452 | H43: -0.0001702947907
B44: 6.5 | C44: 0.8129133566 | D44: 118.3333333 | E44: =FourBar($D$27,$D$28,$D$29,$D$26,-1,D44*D_R) -> 2.870585175 | F44: =E44/D_R -> 164.4724152 | G44: 0.8129335979 | H44: -2.024125992e-05
B45: 7 | C45: 0.84509804 | D45: 125 | E45: =FourBar($D$27,$D$28,$D$29,$D$26,-1,D45*D_R) -> 2.904241449 | F45: =E45/D_R -> 166.4007777 | G45: 0.8450729726 | H45: 2.506742443e-05
B46: 7.5 | C46: 0.8750612634 | D46: 131.6666667 | E46: =FourBar($D$27,$D$28,$D$29,$D$26,-1,D46*D_R) -> 2.935723182 | F46: =E46/D_R -> 168.2045482 | G46: 0.8751358131 | H46: -7.454974582e-05
B47: 8 | C47: 0.903089987 | D47: 138.3333333 | E47: =FourBar($D$27,$D$28,$D$29,$D$26,-1,D47*D_R) -> 2.965335933 | F47: =E47/D_R -> 169.9012338 | G47: 0.9034139068 | H47: -0.0003239198034
B48: 8.5 | C48: 0.9294189257 | D48: 145 | E48: =FourBar($D$27,$D$28,$D$29,$D$26,-1,D48*D_R) -> 2.993266044 | F48: =E48/D_R -> 171.5015113 | G48: 0.9300851989 | H48: -0.0006662731364
B49: 9 | C49: 0.9542425094 | D49: 151.6666667 | E49: =FourBar($D$27,$D$28,$D$29,$D$26,-1,D49*D_R) -> 3.019517863 | F49: =E49/D_R -> 173.0056297 | G49: 0.9551538393 | H49: -0.0009113298297
B50: 9.5 | C50: 0.9777236053 | D50: 158.3333333 | E50: =FourBar($D$27,$D$28,$D$29,$D$26,-1,D50*D_R) -> 3.043673666 | F50: =E50/D_R -> 174.3896553 | G50: 0.9782209315 | H50: -0.0004973262592
B51: 10 | C51: 1 | D51: 165 | E51: =FourBar($D$27,$D$28,$D$29,$D$26,-1,D51*D_R) -> 3.063671151 | F51: =E51/D_R -> 175.5354268 | G51: 0.9973171235 | H51: 0.002682876543

Sheet Three Precision Points
M1: =PI()/180 -> 0.01745329252
B11: qin | C11: 45 | E11: Dq | F11: 120 | H11: Dx | I11: 9 | K11: kq | L11: =F11/I11 -> 13.33333333
B12: fin | C12: 65 | E12: Df | F12: 60 | H12: Dy | I12: =LOG(10) -> 1 | K12: kf | L12: =F12/I12 -> 60
X13: Chebyshev Spacing
D14: DEGREES | G14: RADIANS
B15: x | C15: y | D15: q | E15: f | G15: q | H15: f
B16: =11/2-9/2*COS(PI()/6) -> 1.602885683 | C16: =LOG(B16) -> 0.2049025498 | D16: =$C$11+$L$11*(B16-1) -> 53.03847577 | E16: =$C$12+$L$12*C16 -> 77.29415299 | G16: =D16*D_R -> 0.9256960325 | H16: =E16*D_R -> 1.349037462
B17: =11/2-9/2*COS(PI()/2) -> 5.5 | C17: =LOG(B17) -> 0.7403626895 | D17: =$C$11+$L$11*(B17-1) -> 105 | E17: =$C$12+$L$12*C17 -> 109.4217614 | G17: =D17*D_R -> 1.832595715 | H17: =E17*D_R -> 1.909770009
B18: =11/2-9/2*COS(5*PI()/6) -> 9.397114317 | C18: 0.9729945101 | D18: =$C$11+$L$11*(B18-1) -> 156.9615242 | E18: 123.3796706 | G18: =D18*D_R -> 2.739495397 | H18: =E18*D_R -> 2.153381482
B20: =COS(H16) -> 0.2199457561 | C20: =-COS(G16) -> -0.6012785807 | D20: 1 | E20: =COS(H16-G16) -> 0.9117213426 | I20: K1 | J20: =MMULT(MINVERSE(B20:D22),(E20:E22)) -> -1.107823613
B21: =COS(H17) -> -0.332519351 | C21: =-COS(G17) -> 0.2588190451 | D21: 1 | E21: =COS(H17-G17) -> 0.9970235418 | I21: K2 | J21: -0.6124091919
B22: =COS(H18) -> -0.550184489 | C22: =-COS(G18) -> 0.9202422587 | D22: 1 | E22: 0.8330964658 | I22: K3 | J22: 0.7871539152
C24: a1 | D24: 1
C25: a2 | D25: =D24/J20 -> -0.9026707754 | E25: =-D25 -> 0.9026707754
C26: a3 | D26: =SQRT(D24^2+D25^2+D27^2-2*J22*D25*D27) -> 1.469926439
C27: a4 | D27: =D24/J21 -> -1.632895151 | E27: =-D27 -> 1.632895151 | H27: emax | I27: =MAX(H31:H49) -> 0.2540258946
H28: emin | I28: =MIN(H31:H49) -> -0.124966798
B30: x | C30: yreq | D30: q | E30: f | G30: ygen | H30: e
B31: 1 | C31: =LOG(B31) -> 0 | D31: =$C$11+180+$L$11*(B31-$B$31) -> 225 | E31: =FourBar($E$25,$D$26,$E$27,$D$24,-1,D31*D_R) -> 4.406921592 | F31: =E31/D_R-180 -> 72.49800788 | G31: =1/$L$12*(F31-$C$12) -> 0.124966798 | H31: =C31-G31 -> -0.124966798
B32: 1.5 | C32: =LOG(B32) -> 0.1760912591 | D32: =$C$11+180+$L$11*(B32-$B$31) -> 231.6666667 | E32: =FourBar($E$25,$D$26,$E$27,$D$24,-1,D32*D_R) -> 4.476206858 | F32: =E32/D_R-180 -> 76.46776118 | G32: =1/$L$12*(F32-$C$12) -> 0.191129353 | H32: =C32-G32 -> -0.01503809395
B33: 2 | C33: 0.3010299957 | D33: 238.3333333 | E33: =FourBar($E$25,$D$26,$E$27,$D$24,-1,D33*D_R) -> 4.546772821 | F33: =E33/D_R-180 -> 80.51089307 | G33: 0.2585148845 | H33: 0.04251511115
B34: 2.5 | C34: 0.3979400087 | D34: 245 | E34: =FourBar($E$25,$D$26,$E$27,$D$24,-1,D34*D_R) -> 4.618380092 | F34: =E34/D_R-180 -> 84.61368746 | G34: 0.326894791 | H34: 0.07104521766
B35: 3 | C35: 0.4771212547 | D35: 251.6666667 | E35: =FourBar($E$25,$D$26,$E$27,$D$24,-1,D35*D_R) -> 4.690758988 | F35: =E35/D_R-180 -> 88.76069274 | G35: 0.3960115457 | H35: 0.08110970898
B36: 3.5 | C36: 0.5440680444 | D36: 258.3333333 | E36: =FourBar($E$25,$D$26,$E$27,$D$24,-1,D36*D_R) -> 4.763602701 | F36: =E36/D_R-180 -> 92.93433002 | G36: 0.465572167 | H36: 0.07849587739
B37: 4 | C37: 0.6020599913 | D37: 265 | E37: =FourBar($E$25,$D$26,$E$27,$D$24,-1,D37*D_R) -> 4.83655617 | F37: =E37/D_R-180 -> 97.11425593 | G37: 0.5352375988 | H37: 0.0668223925
B38: 4.5 | C38: 0.6532125138 | D38: 271.6666667 | E38: =FourBar($E$25,$D$26,$E$27,$D$24,-1,D38*D_R) -> 4.909198685 | F38: =E38/D_R-180 -> 101.2763654 | G38: 0.6046060903 | H38: 0.04860642351
B39: 5 | C39: 0.6989700043 | D39: 278.3333333 | E39: =FourBar($E$25,$D$26,$E$27,$D$24,-1,D39*D_R) -> 4.981016899 | F39: =E39/D_R-180 -> 105.391246 | G39: 0.6731874329 | H39: 0.0257825714
B40: 5.5 | C40: 0.7403626895 | D40: 285 | E40: =FourBar($E$25,$D$26,$E$27,$D$24,-1,D40*D_R) -> 5.051362663 | F40: =E40/D_R-180 -> 109.4217614 | G40: 0.7403626895 | H40: 9.992007222e-16
B41: 6 | C41: 0.7781512504 | D41: 291.6666667 | E41: =FourBar($E$25,$D$26,$E$27,$D$24,-1,D41*D_R) -> 5.119385641 | F41: =E41/D_R-180 -> 113.3191909 | G41: 0.8053198487 | H41: -0.02716859835
B42: 6.5 | C42: 0.8129133566 | D42: 298.3333333 | E42: =FourBar($E$25,$D$26,$E$27,$D$24,-1,D42*D_R) -> 5.183922063 | F42: =E42/D_R-180 -> 117.0168555 | G42: 0.8669475921 | H42: -0.05403423542
B43: 7 | C43: 0.84509804 | D43: 305 | E43: =FourBar($E$25,$D$26,$E$27,$D$24,-1,D43*D_R) -> 5.243302974 | F43: =E43/D_R-180 -> 120.4191311 | G43: 0.9236521848 | H43: -0.07855414482
B44: 7.5 | C44: 0.8750612634 | D44: 311.6666667 | E44: =FourBar($E$25,$D$26,$E$27,$D$24,-1,D44*D_R) -> 5.295005305 | F44: =E44/D_R-180 -> 123.3814565 | G44: 0.9730242748 | H44: -0.09796301136
B45: 8 | C45: 0.903089987 | D45: 318.3333333 | E45: =FourBar($E$25,$D$26,$E$27,$D$24,-1,D45*D_R) -> 5.334972234 | F45: =E45/D_R-180 -> 125.6713928 | G45: 1.011189881 | H45: -0.1080998937
B46: 8.5 | C46: 0.9294189257 | D46: 325 | E46: =FourBar($E$25,$D$26,$E$27,$D$24,-1,D46*D_R) -> 5.356169219 | F46: =E46/D_R-180 -> 126.8858906 | G46: 1.03143151 | H46: -0.1020125844
B47: 9 | C47: 0.9542425094 | D47: 331.6666667 | E47: =FourBar($E$25,$D$26,$E$27,$D$24,-1,D47*D_R) -> 5.345142351 | F47: =E47/D_R-180 -> 126.2540976 | G47: 1.020901627 | H47: -0.06665911735
B48: 9.5 | C48: 0.9777236053 | D48: 338.3333333 | E48: =FourBar($E$25,$D$26,$E$27,$D$24,-1,D48*D_R) -> 5.272374041 | F48: =E48/D_R-180 -> 122.0847806 | G48: 0.9514130099 | H48: 0.02631059542
B49: 10 | C49: 1 | D49: 345 | E49: =FourBar($E$25,$D$26,$E$27,$D$24,-1,D49*D_R) -> 5.057238924 | F49: =E49/D_R-180 -> 109.7584463 | G49: 0.7459741054 | H49: 0.2540258946
